[Event "II Torneo Paterna-B 2021"]
[Site "Paterna"]
[Date "2021.10.18"]
[Round "7.3"]
[White "Luque Saiz, Andres"]
[Black "Pallardo Lozoya, Jose Vicente"]
[Result "1-0"]
[ECO "B18"]
[WhiteElo "2307"]
[BlackElo "2357"]
[Annotator "RC"]
[PlyCount "71"]
[EventDate "2021.10.18"]
[EventType "tourn"]
[EventCountry "ESP"]
[SourceTitle "playchess.com"]
[Source "ChessBase"]
[SourceQuality "1"]
[TimeControl "240+3"]

1. e4 {[%emt 0:00:03]} c6 {[%emt 0:00:01]} 2. d4 {[%emt 0:00:01]} d5 {[%emt 0:00:01]} 3. Nd2 {[%emt 0:00:01]} dxe4 {[%emt 0:00:05]} 4. Nxe4 {[%emt 0:00:01]} Bf5 {[%emt 0:00:01]} 5. Ng3 {[%emt 0:00:01]} Bg6 {[%emt 0:00:01]} 6. Nh3 {[%emt 0:00:01]} e6 {[%emt 0:00:24]} 7. Nf4 {[%emt 0:00:11]} Bd6 {[%emt 0:00:03]} 8. h4 {[%emt 0:00:03]} Qc7 {[%emt 0:00:02]} 9. Nxg6 {[%emt 0:00:02]} hxg6 {[%emt 0:00:02]} 10. Ne4 {[%emt 0:00:01]} Be7 {[%emt 0:00:10]} 11. g3 {[%emt 0:00:13]} Nf6 {[%emt 0:00:06]} 12. Ng5 {[%emt 0:00:14]} Nbd7 {[%emt 0:00:19]} 13. Bg2 {[%emt 0:00:17]} Rd8 {[%emt 0:00:37]} 14. O-O {[%emt 0:00:44]} Nb6 {[%emt 0:00:23]} 15. c3 {[%emt 0:00:27]} O-O {[%emt 0:00:23]} 16. Qe2 {[%emt 0:00:16]} Rfe8 {[%emt 0:00:37]} 17. a4 {[%emt 0:01:15]} a5 {[%emt 0:00:14]} 18. Bf4 {[%emt 0:00:26]} Bd6 {[%emt 0:00:01]} 19. Be5 {[%emt 0:00:02]} Nbd7 {[%emt 0:00:33]} 20. f4 {[%emt 0:00:15]} Nd5 {[%emt 0:00:20]} 21. Ne4 {[%emt 0:00:11]} Nxe5 {[%emt 0:00:27]} 22. fxe5 {[%emt 0:00:02]} Bf8 {[%emt 0:00:09]} 23. Rae1 {[%emt 0:00:08]} c5 {[%emt 0:00:00]} 24. Ng5 {[%emt 0:00:08]} Rd7 {[%emt 0:00:04]} 25. h5 {[%emt 0:00:00]} cxd4 {[%emt 0:00:05]} 26. hxg6 {[%emt 0:00:02]} fxg6 {[%emt 0:00:02]} 27. cxd4 {[%emt 0:00:03]} Qb6 {[%emt 0:00:05]} 28. Qf2 {[%emt 0:00:11]} Nb4 {[%emt 0:00:05]} 29. Rd1 {[%emt 0:00:01]} Red8 {[%emt 0:00:03]} 30. Kh2 {[%emt 0:00:07]} Nd5 {[%emt 0:00:05]} 31. Bxd5 {[%emt 0:00:02]} exd5 {[%emt 0:00:03]} 32. e6 {[%emt 0:00:01]} Re7 {[%emt 0:00:01]} 33. Qf7+ {[%emt 0:00:05]} Rxf7 {[%emt 0:00:04]} 34. exf7+ {[%emt 0:00:03]} Kh8 {[%emt 0:00:01]} 35. Kg2 {[%emt 0:00:03]} Qxb2+ {[%emt 0:00:06]} 36. Rf2 {[%emt 0:00:01]} 1-0